[Event "SixDays Budapest March GM-B 2023"]
[Site "Budapest"]
[Date "2023.03.28"]
[Round "7.2"]
[White "Varga, Csaba Zoltan"]
[Black "Ilincic, Zlatko"]
[Result "1/2-1/2"]
[ECO "C47"]
[WhiteElo "2278"]
[BlackElo "2302"]
[Annotator "TA"]
[PlyCount "37"]
[EventDate "2023.03.24"]
[EventType "tourn"]
[EventCountry "HUN"]
[SourceTitle "playchess.com"]
[Source "ChessBase"]
[SourceQuality "1"]
[TimeControl "5400+30"]

{[%evp 19,24,22,20,0,0,-12,-2]} 1. e4 e5 2. Nf3 Nf6 3. Nc3 Nc6 4. d4 exd4 5. Nxd4 Bb4 6. Nxc6 bxc6 7. Bd3 d5 8. exd5 Qe7+ 9. Qe2 Qxe2+ 10. Kxe2 cxd5 {The position is equal.} 11. Bg5 {C47: Scotch Four Knights and Four Knights with 4 g3.} c6 12. Bxf6 gxf6 {[#] Not much happened in this game.   Weighted Error Value: White=0.16 (very precise) /Black=0.00 (flawless)} {Predecessor:} 13. a3 $146 Bd6 14. Rhe1 Be6 15. Kf1 Kd7 16. h3 Rab8 17. Rab1 a5 18. Ne2 c5 19. c3 {½-½ Xu,Y (2510)-Durarbayli,V (2635) PRO League Prelim rapid 2023 (4.1)} 1/2-1/2

[Event "SixDays Budapest March GM-B 2023"]
[Site "Budapest"]
[Date "2023.03.28"]
[Round "7.3"]
[White "Pribelszky, Bence"]
[Black "Swayams, Mishra"]
[Result "0-1"]
[ECO "C55"]
[WhiteElo "2380"]
[BlackElo "2489"]
[Annotator "TA"]
[PlyCount "90"]
[EventDate "2023.03.24"]
[EventType "tourn"]
[EventCountry "HUN"]
[SourceTitle "playchess.com"]
[Source "ChessBase"]
[SourceQuality "1"]
[TimeControl "5400+30"]

{[%evp 9,89,21,38,20,11,-3,0,-1,16,-40,15,0,33,30,27,26,53,30,92,60,72,78,80,43,52,56,70,29,53,39,47,47,54,39,47,45,75,16,31,39,46,12,31,10,152,148,133,148,160,162,162,161,160,152,153,145,143,0,147,143,195,185,221,240,220,-97,-96,-836,-771,-1672,-1605,-29972,-7029,-29994,-29995,-29996,-29997,-29997,-29998,-29998,-29999,-29999]} 1. e4 {[%emt 0:01:48]} e5 {[%emt 0:23:47]} 2. Nf3 {[%emt 0:00:05]} Nc6 {[%emt 0:00:11]} 3. Bc4 {[%emt 0:00:04]} Nf6 {[%emt 0:01:05]} 4. d3 {[%emt 0:00:04]} h6 {[%emt 0:00:05]} 5. O-O {[%emt 0:00:06]} d6 {[%emt 0:00:05]} ({Don't play} 5... d5 6. exd5 Nxd5 7. Re1 $16) 6. a3 {[%emt 0:00:05] C55: Two Knights: 4 d3, 4 d4 exd4 5 e5 and Max Lange Attack.} g5 {[%emt 0:00:20]} 7. Nc3 {[%emt 0:00:36] [#]} Bg4 $146 {[%emt 0:02:48]} ({Predecessor:} 7... Bg7 8. Ba2 Bg4 9. Be3 Qd7 10. Ne2 Nh5 11. Ne1 Nf4 12. f3 Be6 13. Bxe6 Nxe2+ 14. Qxe2 Qxe6 {½-½ Alekseev,E (2626)-Riazantsev,A (2638) RUS-ch Higher League 73rd 2020 (8)}) 8. Be3 {[%emt 0:04:55] Wards off Nd4. The position is equal.} Bg7 {[%emt 0:04:13]} 9. b4 {[%emt 0:14:14]} (9. h3 $11 Be6 10. Bb5) 9... O-O {[%emt 0:06:57]} (9... Nd4 $15) 10. Nd5 {[%emt 0:15:21]} (10. h3 $5 {[%cal Rh3g4]} Be6 11. b5 $11) 10... Ne7 {[%emt 0:05:53] Hoping for ...Nfxd5.} 11. Nxf6+ {[%emt 0:06:45]} Bxf6 {[%emt 0:00:36]} 12. h3 {[%emt 0:00:06]} Be6 {[%emt 0:01:19]} 13. Nh2 {[%emt 0:08:10]} Kg7 {[%emt 0:09:43]} (13... Bxc4 $11 14. dxc4 Bg7) 14. Qh5 {[%emt 0:01:21]} Ng6 {[%emt 0:04:12]} 15. g3 {[%emt 0:05:30] Dodges Nf4} Rh8 {[%emt 0:06:08]} 16. Ng4 {[%emt 0:06:56]} Bxg4 {[%emt 0:01:29]} 17. hxg4 {[%emt 0:00:02]} c6 {[%emt 0:00:11]} 18. Kg2 {[%emt 0:03:12]} Qd7 {[%emt 0:00:24]} 19. Bb3 {[%emt 0:02:20]} d5 {[%emt 0:03:31]} 20. Rad1 {[%emt 0:06:14]} a6 {[%emt 0:05:48]} 21. c4 {[%emt 0:05:16][%cal Rc4d5]} d4 {[%emt 0:01:47]} 22. Bd2 $36 {[%emt 0:00:01][%mdl 2048] White fights for an advantage.} Bd8 {[%emt 0:04:53]} 23. f4 {[%emt 0:08:10]} ({Better is} 23. c5 $16) 23... exf4 $11 {[%emt 0:01:05]} 24. gxf4 {[%emt 0:00:01]} Bc7 {[%emt 0:00:14][%cal Rc7f4]} 25. f5 {[%emt 0:00:32]} (25. fxg5 $2 {too greedy.} hxg5 26. Qxg5 Bd8 $19) (25. e5 $5 {[%cal Rc4c5]}) 25... Nh4+ {[%emt 0:00:29]} 26. Kf2 {[%emt 0:07:48][%cal Of5f6] And now f6+! would win.} (26. Kg1 $5 {[%cal Rf5f6]}) 26... Qd6 {[%emt 0:00:24] [#]} (26... c5 $11 {keeps the balance.}) 27. Qxf7+ $3 $16 {[%emt 0:00:01][%mdl 576] Decoy} Kxf7 {[%emt 0:00:16]} 28. c5+ {[%emt 0:00:03][%mdl 64] Discovered Attack} Kf6 {[%emt 0:00:14] ( -> ...Qh2+)} 29. cxd6 {[%emt 0:00:03]} Bxd6 {[%emt 0:00:06]} 30. Rc1 {[%emt 0:02:39]} Rad8 {[%emt 0:01:49]} 31. Rc4 {[%emt 0:00:24]} Be5 {[%emt 0:00:54]} 32. Rc5 {[%emt 0:00:50]} Bd6 {[%emt 0:00:47]} 33. Rc4 {[%emt 0:02:24]} Be5 $1 {[%emt 0:00:04]} 34. a4 {[%emt 0:00:35]} h5 {[%emt 0:00:19] [#]} (34... Rc8 $16 35. Bc1 Rhd8) 35. Rg1 $1 $18 {[%emt 0:00:01]} Bh2 {[%emt 0:00:34]} 36. Rh1 {[%emt 0:00:57]} Be5 {[%emt 0:00:09] [#]} 37. Rc5 $2 {[%emt 0:00:48]} (37. Rxh4 $1 $18 gxh4 38. g5+ Kg7 39. Kg2) 37... hxg4 $17 {[%emt 0:00:19] Strongly threatening ...Nf3.} 38. Bxg5+ $2 {[%emt 0:00:29][%mdl 8192] Loses the game.} Kxg5 $19 {[%emt 0:00:02]} 39. Rxe5 {[%emt 0:00:04]} Nf3 {[%emt 0:03:04]} 40. Rxh8 {[%emt 0:00:54]} Rxh8 {[%emt 0:00:02] KRB-KRN} 41. Rc5 {[%emt 0:00:13]} Kf4 {[%emt 0:00:09] Black mates.} 42. f6 {[%emt 0:00:52]} Rh2+ {[%emt 0:00:37]} 43. Kf1 {[%emt 0:00:08]} Ke3 {[%emt 0:00:28][%csl Ge3][%cal Rh2f2]} 44. Rc2 {[%emt 0:00:10]} Rh1+ {[%emt 0:00:05]} 45. Kg2 {[%emt 0:00:05]} Rg1# {[%emt 0:00:04] Artfully played by Swayams.   Weighted Error Value: White=0.79/Black=0.16 (very precise)} 0-1

[Event "SixDays Budapest March GM-B 2023"]
[Site "Budapest"]
[Date "2023.03.28"]
[Round "7.4"]
[White "Royal, Shreyas"]
[Black "Priasmoro, Novendra"]
[Result "0-1"]
[ECO "E71"]
[WhiteElo "2452"]
[BlackElo "2521"]
[Annotator "TA"]
[PlyCount "112"]
[EventDate "2023.03.24"]
[EventType "tourn"]
[EventCountry "HUN"]
[SourceTitle "playchess.com"]
[Source "ChessBase"]
[SourceQuality "1"]
[TimeControl "5400+30"]

{[%evp 13,112,27,52,46,47,33,56,55,70,28,41,39,70,16,22,29,50,0,11,-1,-20,-14,0,-28,-61,-64,0,0,-12,-39,-8,-46,-41,-38,-40,-50,-33,-43,0,-75,0,0,0,0,0,-16,-16,-14,-12,-15,-15,-10,0,-7,-5,-33,-24,-25,0,0,0,0,0,-7,0,0,0,-14,-15,-15,-31,-85,-84,-141,-141,-141,-141,-150,-141,-141,-141,-201,-201,-249,-193,-399,-380,-382,-393,-382,-351,-489,-461,-567,-565,-559,-538,-521,-508,-552,-483]} 1. d4 {[%emt 0:00:33]} Nf6 {[%emt 0:10:24]} 2. c4 {[%emt 0:00:05]} g6 {[%emt 0:00:07]} 3. Nc3 {[%emt 0:00:06]} Bg7 {[%emt 0:00:08]} 4. e4 {[%emt 0:00:07]} d6 {[%emt 0:00:04]} 5. h3 {[%emt 0:00:06]} O-O {[%emt 0:00:34]} 6. Be3 {[%emt 0:00:07]} e5 {[%emt 0:06:25]} 7. d5 {[%emt 0:00:10]} a5 {[%emt 0:00:39]} 8. g4 {[%emt 0:00:13] E71: King's Indian: 4 e4 d6 5 h3.} Na6 {[%emt 0:00:44]} 9. Nge2 {[%emt 0:00:07]} c6 {[%emt 0:10:03]} 10. Ng3 {[%emt 0:00:53] White is slightly better.} cxd5 {[%emt 0:00:13]} 11. cxd5 {[%emt 0:00:05]} Nc5 {[%emt 0:00:17]} 12. Be2 {[%emt 0:04:49]} a4 {[%emt 0:01:36]} 13. g5 {[%emt 0:03:37]} (13. Kf1 $14) 13... Ne8 $11 {[%emt 0:01:11]} 14. h4 {[%emt 0:00:50] [#]} Qa5 $146 {[%emt 0:03:19]} ({Predecessor:} 14... Bd7 15. h5 b5 16. Qd2 Qa5 17. f3 Nc7 18. hxg6 fxg6 19. Kf2 Rf7 20. Kg2 Bf8 {0-1 Santos Latasa,J (2575)-Murzin,V (2465) Titled Tuesday intern op 14th July blitz 2020 (9)}) 15. Rb1 {[%emt 0:01:49]} Bd7 {[%emt 0:00:37]} 16. Kf1 {[%emt 0:17:38]} b5 {[%emt 0:06:34] ...b4 would be deadly.} 17. a3 {[%emt 0:00:44]} b4 {[%emt 0:10:47]} 18. Na2 {[%emt 0:00:27]} bxa3 {[%emt 0:00:47]} 19. bxa3 {[%emt 0:00:12]} Nc7 {[%emt 0:00:40]} ({Black should play} 19... f5 $15 20. exf5 gxf5) 20. Bd2 {[%emt 0:11:01]} Qa7 {[%emt 0:00:09]} 21. Kg2 {[%emt 0:00:13]} Rab8 {[%emt 0:02:40]} 22. Nb4 {[%emt 0:08:59]} Nb5 {[%emt 0:02:42]} 23. Bxb5 {[%emt 0:05:18]} Bxb5 {[%emt 0:00:06]} 24. Be3 {[%emt 0:00:10]} Qd7 {[%emt 0:03:54]} 25. h5 {[%emt 0:00:41][%cal Ob4c6]} Rb7 {[%emt 0:07:43]} 26. Rh4 {[%emt 0:03:49]} (26. h6 $11 {keeps the balance.} Bh8 27. Bxc5 dxc5 28. Nc6) 26... Na6 {[%emt 0:02:09]} (26... Nb3 $17) 27. Nxa6 {[%emt 0:05:02]} Bxa6 {[%emt 0:00:06]} 28. Rxb7 {[%emt 0:00:04]} Bxb7 {[%emt 0:00:18]} 29. Qd3 {[%emt 0:00:14]} Ra8 {[%emt 0:02:27]} 30. Rh1 {[%emt 0:03:41]} Ba6 {[%emt 0:01:24]} 31. Qb1 {[%emt 0:00:35]} Bf8 {[%emt 0:03:39]} 32. Rc1 {[%emt 0:02:14]} Rc8 {[%emt 0:03:27]} 33. Rxc8 $1 {[%emt 0:04:44]} Bxc8 {[%emt 0:00:20]} 34. Qf1 {[%emt 0:01:34]} Be7 {[%emt 0:01:15]} (34... Qh3+ {simplifies} 35. Kg1 Qxf1+ 36. Kxf1 gxh5 37. Nxh5 f5) 35. h6 {[%emt 0:04:17]} (35. Kh2 {simplifies} Kf8 36. h6 f6 37. gxf6 Bxf6 38. Qc4) 35... Qg4 {[%emt 0:02:12]} 36. Qb5 {[%emt 0:02:56]} Qh3+ {[%emt 0:01:14]} (36... Bxg5 $2 37. Qe8#) 37. Kg1 {[%emt 0:00:03]} Bg4 {[%emt 0:02:12]} 38. Qf1 {[%emt 0:00:13]} (38. Qxa4 Bf3 39. Qa8+ Bf8) 38... Qh4 {[%emt 0:00:24]} (38... Qxf1+ {simplifies} 39. Kxf1 f6 40. gxf6 Bxf6 41. Kg2 Bd8) 39. Qc1 {[%emt 0:00:39]} Bf8 {[%emt 0:03:09]} 40. Qc6 {[%emt 0:03:27]} Qh3 $40 {[%emt 0:00:30][%mdl 128] ( -> ...Bf3). Black is up to no good.} 41. Qc4 {[%emt 0:00:16]} Bf3 {[%emt 0:00:24][%csl Gf3][%cal Rh3g2]} 42. Qf1 {[%emt 0:00:05] [#] Prevents Qg2+} Qc8 {[%emt 0:02:16] Black is more active.} 43. Qc1 {[%emt 0:02:54] [#] Dodges Qc2} (43. Bd2 $142) 43... Qxc1+ $1 $17 {[%emt 0:02:35]} ({Worse is} 43... Qh3 44. Qf1 Qc8 45. Bd2 $15) 44. Bxc1 {[%emt 0:00:05][%mdl 4096] Endgame KBB-KBN} Be7 {[%emt 0:00:04]} 45. Bd2 {[%emt 0:01:43]} Kf8 {[%emt 0:00:31]} 46. Kf1 {[%emt 0:03:18]} f6 {[%emt 0:00:21]} 47. gxf6 {[%emt 0:01:08]} (47. Be3 $17) 47... Bxf6 $19 {[%emt 0:00:02]} 48. Ke1 {[%emt 0:00:23]} Ke7 {[%emt 0:04:16]} 49. Nf1 $2 {[%emt 0:01:17]} (49. Be3 {is a better defense.}) 49... Bxe4 {[%emt 0:00:08]} 50. Ne3 {[%emt 0:00:04]} Bf3 {[%emt 0:01:34]} 51. Bb4 {[%emt 0:00:18]} Bg5 {[%emt 0:00:16]} 52. Nc4 {[%emt 0:00:07]} Bxd5 {[%emt 0:00:04] This pair of bishops is nice. Black is clearly winning.} (52... Bxh6 $2 {too greedy.} 53. Nxd6 Kd7 54. Nb7 $19) 53. Nxd6 {[%emt 0:01:04] Ne4+ is the strong threat.} Kd7 {[%emt 0:00:37]} ({Less strong is} 53... Bxh6 54. Nf5+ Kf6 55. Nxh6 $16) 54. Nb5 {[%emt 0:00:28]} Bxh6 {[%emt 0:00:09]} 55. Nc3 {[%emt 0:00:03]} Bc6 {[%emt 0:00:06]} 56. Ne2 {[%emt 0:00:06]} Ke6 {[%emt 0:00:15] Weighted Error Value: White=0.22 (precise) /Black=0.11 (very precise)} 0-1

[Event "SixDays Budapest March GM-B 2023"]
[Site "Budapest"]
[Date "2023.03.28"]
[Round "7.5"]
[White "Joshua, A P"]
[Black "Tran, Thanh Tu"]
[Result "1-0"]
[ECO "C02"]
[WhiteElo "2300"]
[BlackElo "2402"]
[Annotator "TA"]
[PlyCount "79"]
[EventDate "2023.03.24"]
[EventType "tourn"]
[EventCountry "HUN"]
[SourceTitle "playchess.com"]
[Source "ChessBase"]
[SourceQuality "1"]
[TimeControl "5400+30"]

{[%evp 12,78,31,-34,-33,-33,-21,-27,-24,-54,-52,-51,-7,0,0,-23,0,-16,-41,-54,-57,-99,-64,-98,-83,-87,-99,-130,-51,-153,-138,-149,-108,-110,-120,-114,-116,-155,-167,-155,-154,-227,-228,-253,-202,-221,-214,-241,-87,-81,-91,-79,456,266,859,850,783,770,1594,1564,1306,1210,29987,29988,29992,29991,29998,29999,29999]} 1. e4 {[%emt 0:01:00]} e6 {[%emt 0:00:57]} 2. d4 {[%emt 0:00:13]} d5 {[%emt 0:00:16]} 3. e5 {[%emt 0:00:08]} c5 {[%emt 0:00:22]} 4. c3 {[%emt 0:00:09]} Nc6 {[%emt 0:00:18]} 5. Nf3 {[%emt 0:00:17]} Qb6 {[%emt 0:00:19]} 6. Bd3 {[%emt 0:00:21]} Bd7 {[%emt 0:04:03]} 7. O-O {[%emt 0:00:36]} ({White should play} 7. dxc5 $14 Bxc5 8. O-O) 7... cxd4 $15 {[%emt 0:00:41] C02: French: Advance Variation.} 8. Re1 {[%emt 0:00:20]} Nge7 {[%emt 0:09:55]} 9. h4 {[%emt 0:00:22]} h6 {[%emt 0:02:03] Black has an edge.} 10. h5 {[%emt 0:00:18]} a6 {[%emt 0:04:12]} 11. Nbd2 {[%emt 0:00:56]} Rc8 {[%emt 0:11:38]} 12. Nb3 {[%emt 0:00:57]} dxc3 {[%emt 0:00:33]} 13. bxc3 {[%emt 0:00:59]} Na5 {[%emt 0:00:36] [#] ...Nxb3 would be deadly.} 14. Nxa5 $146 {[%emt 0:09:30]} (14. Be3 $5 {[%cal Re3b6]} Qc7 15. Nxa5 Qxa5 16. a4 $15) ({Predecessor:} 14. Rb1 Nxb3 15. Rxb3 Qc7 16. Rb4 Nc6 17. Rg4 Na5 18. Bd2 Bb5 19. Bxb5+ axb5 20. Nd4 {1-0 Kulaots,K (2527)-Rozen,E (2398) EU-ch 22nd Terme Catez 2022 (6)}) 14... Qxa5 {[%emt 0:00:06]} 15. Bd2 {[%emt 0:00:34]} Qa4 {[%emt 0:09:32]} 16. Qe2 {[%emt 0:02:18]} Nc6 {[%emt 0:04:56]} 17. Qe3 {[%emt 0:07:39]} Na5 {[%emt 0:13:38]} 18. Rab1 {[%emt 0:06:41]} b5 {[%emt 0:10:39]} (18... Qxa2 $2 19. Ra1 Nc4 20. Rxa2 $18) 19. Qe2 {[%emt 0:04:43]} Qg4 {[%emt 0:03:24]} (19... Qxa2 $2 20. Ra1 $18) (19... Nc4 $17 20. Bc1 Qa5) 20. g3 {[%emt 0:02:40]} (20. Nd4 Qxe2 21. Rxe2 Bc5 $17) (20. a4 $1 $15) 20... Qxh5 {[%emt 0:01:20]} 21. Kg2 {[%emt 0:02:20] Black must now prevent Rh1.} Qg4 {[%emt 0:00:34]} 22. a4 {[%emt 0:06:51][%cal Ra4b5]} Nc4 {[%emt 0:00:21]} ({Don't do} 22... Qxa4 23. Ra1 Ba3 24. Nd4 $16) 23. axb5 {[%emt 0:00:42]} axb5 {[%emt 0:00:46]} 24. Ra1 {[%emt 0:05:47]} Be7 {[%emt 0:00:42][%cal Ob5b4]} 25. Rh1 {[%emt 0:01:47]} h5 {[%emt 0:03:01][%cal Bh6h5,Bh5h4][%mdl 32]} 26. Qe1 {[%emt 0:02:48]} (26. Bf4 $17) 26... h4 $19 {[%emt 0:00:57]} 27. Rh3 {[%emt 0:05:30]} Nb2 {[%emt 0:05:47]} 28. Bc2 {[%emt 0:03:31]} Qc4 {[%emt 0:00:49] Against Ra2} 29. gxh4 {[%emt 0:02:27]} Nd3 $2 {[%emt 0:02:01]} (29... b4 $1 $19 {[%cal Rb4c3] is more deadly.} 30. Rb1 g5 31. Bxg5 Bxg5 32. hxg5 Rxh3 33. Kxh3 Qxc3 34. Qxc3 bxc3) 30. Qe3 $17 {[%emt 0:02:10] [#]} Nc5 {[%emt 0:00:02]} 31. Nd4 {[%emt 0:02:23] [#]} f6 $2 {[%emt 0:01:28][%mdl 8192]} (31... Bxh4 $2 32. Rah1 Ne4 33. Rxh4 $18) (31... Rxh4 $2 32. Rxh4 Bxh4 33. Rh1 $18) (31... Ne4 $1 $17 {[%cal Re4d2] Strongly threatening ...Nxd2.} 32. Bd3 Qc5 33. Bxe4 dxe4 34. Qxe4 Rh5) 32. Ra7 {[%emt 0:03:15]} (32. Qg3 $142 Ne4 33. Qxg7) 32... f5 $2 {[%emt 0:02:22]} (32... Rf8 33. Rg3 Ne4) 33. Qg3 $18 {[%emt 0:03:22]} O-O {[%emt 0:05:10]} 34. h5 {[%emt 0:00:09] Threatens to win with h6.} (34. Qg6 Be8 35. Qg3 Rf7 $14) 34... b4 35. h6 {[%emt 0:00:22][%csl Gh6][%cal Rg3g7]} Rf7 {[%emt 0:01:02]} 36. Qg6 {[%emt 0:00:43] h7+ is the strong threat.} (36. hxg7 Rxg7 $11) 36... Be8 {[%emt 0:02:18]} 37. Rg3 {[%emt 0:01:39] White mates.} ({Not} 37. Nxe6 Nxe6 38. Qxe6 Rc6 39. Qxe7 (39. h7+ Kh8 $11) 39... Rg6+ 40. Kh2 Rxe7 41. Rxe7 Bb5 $11) 37... bxc3 {[%emt 0:00:41]} 38. hxg7 {[%emt 0:00:17]} Qxd4 {[%emt 0:00:30] [#]} 39. Qh7+ $3 {[%emt 0:00:20][%mdl 576] Decoy, Promotion} Kxh7 {[%emt 0:00:06]} 40. g8=Q# {[%emt 0:00:03] White used his chance. Magnificent play by Joshua!   Weighted Error Value: White=0.23 (precise) /Black=0.49} 1-0

[Event "SixDays Budapest March GM-B 2023"]
[Site "Budapest"]
[Date "2023.03.28"]
[Round "8.1"]
[White "Vantika Agrawal"]
[Black "Tran, Thanh Tu"]
[Result "1/2-1/2"]
[ECO "A40"]
[WhiteElo "2367"]
[BlackElo "2402"]
[Annotator "TA"]
[PlyCount "76"]
[EventDate "2023.03.24"]
[EventType "tourn"]
[EventCountry "HUN"]
[SourceTitle "playchess.com"]
[Source "ChessBase"]
[SourceQuality "1"]
[TimeControl "5400+30"]

{[%evp 21,76,22,23,19,22,19,26,22,22,13,16,9,9,9,19,19,17,17,17,0,0,0,0,0,0,0,0,0,0,0,0,0,0,0,0,0,0,0,25,25,25,11,11,11,11,11,11,11,11,11,11,11,11,11,11,11,11]} 1. d4 {[%emt 0:02:44]} e6 {[%emt 0:01:08]} 2. c4 {[%emt 0:00:31]} f5 {[%emt 0:01:31]} 3. Nf3 {[%emt 0:01:10]} Nf6 {[%emt 0:00:09]} 4. g3 {[%emt 0:00:05]} d5 {[%emt 0:01:28]} 5. Bg2 {[%emt 0:00:06]} Bd6 {[%emt 0:00:16]} 6. O-O {[%emt 0:00:38]} c6 {[%emt 0:00:29]} 7. b3 {[%emt 0:00:28]} Qe7 {[%emt 0:00:06]} 8. a4 {[%emt 0:00:28]} O-O {[%emt 0:01:35]} 9. Ba3 {[%emt 0:00:35]} Nbd7 {[%emt 0:02:34]} 10. Bxd6 Qxd6 {[%emt 0:00:13]} 11. Nbd2 {[%emt 0:11:27]} a5 {[%emt 0:07:37]} 12. Qc2 {[%emt 0:03:39] A90: Dutch Defence: Miscellaneous and Modern Stonewall (with ...Bd6).} b6 {[%emt 0:02:18]} 13. Rac1 {[%emt 0:20:40]} Ba6 {[%emt 0:05:07]} 14. Rfd1 {[%emt 0:01:38] White has an edge.} Rac8 {[%emt 0:02:04]} 15. Qb2 {[%emt 0:01:18]} Ne4 {[%emt 0:06:00]} 16. Ne5 {[%emt 0:06:04] [#]} Nxe5 $146 {[%emt 0:04:12]} ({Predecessor:} 16... Nxd2 17. Rxd2 Nxe5 18. dxe5 Qe7 19. e3 Rfd8 20. Bf1 Bb7 21. Rcd1 Kf7 22. Bg2 Qc7 {½-½ Chudinovskih,A (2275)-Pokorny,P (2164) Brno op 2015 (4)}) 17. dxe5 {[%emt 0:00:55]} Qb4 {[%emt 0:11:03]} 18. Nxe4 {[%emt 0:11:33]} fxe4 {[%emt 0:00:15]} 19. Bh3 {[%emt 0:00:29]} Rfe8 {[%emt 0:02:11][%cal Ra6c4]} 20. cxd5 {[%emt 0:05:51]} cxd5 {[%emt 0:00:09]} 21. Rxc8 {[%emt 0:00:10]} Bxc8 {[%emt 0:00:05]} 22. Rc1 {[%emt 0:07:17][%cal Oc1c8] [#] Rxc8! would be deadly.} Bd7 {[%emt 0:05:07]} 23. Qb1 {[%emt 0:13:58]} Rc8 {[%emt 0:17:19] Inhibits Rc7.} 24. Rxc8+ {[%emt 0:00:14]} Bxc8 $11 {[%emt 0:01:29][%mdl 4096] Endgame KQB-KQB} 25. Qc1 {[%emt 0:00:14] Prevents Qc3.} Qc5 {[%emt 0:00:13]} 26. Qg5 {[%emt 0:01:36] Strongly threatening Qd8+.} Qc7 {[%emt 0:00:28] Wards off Qd8+} 27. Bg4 {[%emt 0:05:11]} h6 {[%emt 0:02:05]} 28. Qf4 {[%emt 0:00:33]} Qe7 {[%emt 0:01:04]} 29. h4 {[%emt 0:02:14]} g5 {[%emt 0:07:06]} 30. hxg5 {[%emt 0:00:33]} Qxg5 {[%emt 0:00:09]} 31. Qxg5+ {[%emt 0:01:24]} hxg5 {[%emt 0:00:01] KB-KB. The position is equal.} 32. e3 {[%emt 0:01:44]} Kf7 {[%emt 0:00:09]} 33. Kf1 {[%emt 0:00:02]} Ba6+ {[%emt 0:01:59]} 34. Ke1 {[%emt 0:00:05]} Bd3 {[%emt 0:01:45]} 35. Kd2 {[%emt 0:00:06] Repels Bc2} Bf1 {[%emt 0:03:11]} 36. Kc3 {[%emt 0:00:28]} Ke7 {[%emt 0:04:59]} 37. b4 {[%emt 0:00:39]} axb4+ {[%emt 0:00:22]} 38. Kxb4 {[%emt 0:00:04]} Bd3 {[%emt 0:00:54] A balanced but interesting game.   Weighted Error Value: White=0.01 (flawless) /Black=0.02 (flawless)} 1/2-1/2

[Event "SixDays Budapest March GM-B 2023"]
[Site "Budapest"]
[Date "2023.03.28"]
[Round "8.2"]
[White "Priasmoro, Novendra"]
[Black "Joshua, A P"]
[Result "1-0"]
[ECO "B12"]
[WhiteElo "2521"]
[BlackElo "2300"]
[Annotator "TA"]
[PlyCount "81"]
[EventDate "2023.03.24"]
[EventType "tourn"]
[EventCountry "HUN"]
[SourceTitle "playchess.com"]
[Source "ChessBase"]
[SourceQuality "1"]
[TimeControl "5400+30"]

{[%evp 9,81,0,14,-10,-7,0,-4,-8,0,4,0,0,10,0,10,11,37,15,48,35,68,60,72,58,49,25,169,168,154,134,135,131,134,106,105,97,106,91,148,86,165,166,174,174,168,162,159,155,148,100,100,101,153,110,128,114,158,135,134,121,114,135,146,147,152,133,301,327,672,672,1254,1076,1265,1253]} 1. e4 {[%emt 0:09:22]} c6 {[%emt 0:00:39]} 2. d4 {[%emt 0:00:10]} d5 {[%emt 0:00:11]} 3. e5 {[%emt 0:00:26]} c5 {[%emt 0:00:21]} 4. dxc5 {[%emt 0:00:09]} e6 {[%emt 0:00:07]} 5. a3 {[%emt 0:00:05]} Bxc5 {[%emt 0:00:42]} 6. b4 {[%emt 0:00:11] B12: Caro-Kann: Advance Variation.} Be7 {[%emt 0:01:30]} 7. Qg4 {[%emt 0:03:40]} g6 {[%emt 0:02:05]} 8. Nf3 {[%emt 0:00:18] The position is equal.} a5 {[%emt 0:01:28]} 9. b5 {[%emt 0:00:49]} (9. Bb5+ Bd7 10. Bxd7+ Nxd7 $15) 9... Nd7 {[%emt 0:02:01]} 10. Bd3 {[%emt 0:01:01]} Qc7 {[%emt 0:04:12]} 11. Bb2 {[%emt 0:03:30]} Nc5 {[%emt 0:06:14] Strongly threatening ...Nxd3+.} 12. O-O {[%emt 0:00:54] [#]} Bd7 $146 {[%emt 0:05:19]} ({Predecessor:} 12... Nh6 13. Qf4 Nf5 14. Nc3 h5 15. Rfd1 Bd7 16. a4 O-O-O 17. Bxf5 gxf5 18. b6 Qxb6 {1-0 Abasov,N (2668)-Sanz Wawer,D (2313) Mikhail Tal Blitz 2020 (14)}) 13. Rc1 {[%emt 0:15:10]} h5 {[%emt 0:24:41]} 14. Qf4 {[%emt 0:01:11]} (14. Qd4 $5 {[%cal Rb1d2]}) 14... Nh6 {[%emt 0:05:16]} 15. Nbd2 {[%emt 0:02:07][%cal Bb1d2,Bd2c4,Bc4d6][%mdl 32]} a4 {[%emt 0:02:38]} 16. Bf1 {[%emt 0:03:27]} Nf5 {[%emt 0:06:04]} 17. c4 {[%emt 0:00:27]} dxc4 {[%emt 0:04:06]} (17... Rc8 $11 {and Black stays safe.}) 18. Nxc4 $18 {[%emt 0:01:08]} ({But not} 18. Qxc4 $6 Qb8 $14) 18... b6 {[%emt 0:06:20]} 19. h3 {[%emt 0:08:54]} Qd8 {[%emt 0:04:10]} 20. Nd6+ {[%emt 0:02:06]} Kf8 {[%emt 0:01:28]} 21. Nxf5 {[%emt 0:03:02]} gxf5 {[%emt 0:03:55]} 22. Rd1 {[%emt 0:00:50]} Qe8 {[%emt 0:01:14]} 23. Nd4 {[%emt 0:01:10]} h4 {[%emt 0:02:33] [#]} (23... Rh7 $142) 24. Be2 {[%emt 0:03:19] White is more active.} (24. Qf3 $142 $1) 24... Rh7 {[%emt 0:01:21] [#]} (24... Rc8 $16) 25. Bf3 $1 {[%emt 0:00:32]} Rc8 {[%emt 0:00:26]} 26. Nc6 {[%emt 0:10:13]} Bxc6 {[%emt 0:01:33]} 27. Bxc6 {[%emt 0:00:06]} Rxc6 {[%emt 0:00:15]} 28. bxc6 {[%emt 0:00:07]} Qxc6 {[%emt 0:00:35]} 29. Qf3 {[%emt 0:00:14]} ({Better is} 29. Rd6 Bxd6 30. exd6) 29... Qxf3 $16 {[%emt 0:05:39]} 30. gxf3 {[%emt 0:00:03]} Nb3 {[%emt 0:01:26]} (30... Kg7 $142) 31. Ra2 {[%emt 0:00:53]} Bc5 {[%emt 0:02:12]} 32. Bc1 {[%emt 0:00:44]} Rg7+ {[%emt 0:02:06]} 33. Kf1 {[%emt 0:00:14] Bh6 is the strong threat.} Ke7 {[%emt 0:00:42]} 34. Rc2 {[%emt 0:01:09]} Nxc1 {[%emt 0:02:49]} 35. Rcxc1 {[%emt 0:00:06][%mdl 4096] Endgame KRR-KRB} Rg8 {[%emt 0:00:25]} 36. Rc4 {[%emt 0:00:07]} Ra8 {[%emt 0:00:16]} 37. Rd3 {[%emt 0:01:26]} Ra5 $2 {[%emt 0:01:10]} (37... f6 $16 {keeps fighting.}) 38. Rxh4 $18 {[%emt 0:00:15] Rh8 would be deadly.} Rb5 $2 {[%emt 0:00:40]} (38... Ra8 39. Rc4 Ke8) 39. Rxa4 {[%emt 0:02:03] Black must now prevent Ra7+. White is clearly winning.} Rb2 {[%emt 0:00:09]} 40. Ra8 {[%emt 0:00:08] White threatens Rad8 and mate.} Rxf2+ {[%emt 0:00:56]} 41. Ke1 {[%emt 0:00:05] Weighted Error Value: White=0.12 (very precise) /Black=0.37} 1-0